{"text_format":"1","workbook":"xlsx","n_sheets":12,"sheets":["Use of UPPER Function","Utilizing of LOWER Function_x0009__x0009__x0009_","Performing of PROPER Function","Use of Microsoft Word","Use of Flash Fill Feature","Table2","Utilizing of Power Query","Use of VBA Code-1","Use of VBA Code-2","Use of VBA Code-3","Use of DAX Formula-1","Use of DAX Formula-2"],"not_rendered":{"charts":0,"images":0,"macros":1,"external_links":0,"defined_names":3,"comments":0,"pivot_tables":2},"unopened":[],"bounds":{"document_bytes":16777216,"sheet_cells":100000,"rows_first":2000,"rows_last":500,"rows_between":2000,"halvings":0,"cell_chars":16384,"cell_head_chars":4096},"cells_cut":0,"cells_raw":0,"read":"whole","date_system":"1900"}

{"sheet":"Use of UPPER Function","index":0,"n_rows":14,"n_cols":6,"rows_kept":14,"cut":false,"hidden":false,"merged":[[1,1,1,5]]}
[]
[null,"Use of UPPER Function"]
[]
[null,"Sl. No.","Employee Name","Total Sales",null,"Result Changing Case"]
[null,1,"Bingham hawn",8800,null,{"$f":"UPPER(C5)","v":"BINGHAM HAWN"}]
[null,2,"diesel dean",6400,null,{"$f":"UPPER(C6)","v":"DIESEL DEAN"}]
[null,3,"benJAmin allEn",7400,null,"BENJAMIN ALLEN"]
[null,4,"WinSton roy",6800,null,"WINSTON ROY"]
[null,5,"ZANder CRuz",6700,null,"ZANDER CRUZ"]
[null,6,"Win HaRRison",7500,null,"WIN HARRISON"]
[null,7,"kevin James",5800,null,"KEVIN JAMES"]
[null,8,"AuTUMN REsser",5600,null,"AUTUMN RESSER"]
[null,9,"lily alDridge",7200,null,"LILY ALDRIDGE"]
[null,10,"Mandy moore",8700,null,"MANDY MOORE"]

{"sheet":"Utilizing of LOWER Function_x0009__x0009__x0009_","index":1,"n_rows":14,"n_cols":6,"rows_kept":14,"cut":false,"hidden":false,"merged":[[1,1,1,5]]}
[]
[null,"Utilizing of LOWER Function"]
[]
[null,"Sl. No.","Employee Name","Total Sales",null,"Result Changing Case"]
[null,1,"Bingham hawn",8800,null,{"$f":"LOWER(C5)","v":"bingham hawn"}]
[null,2,"diesel dean",6400,null,{"$f":"LOWER(C6)","v":"diesel dean"}]
[null,3,"benJAmin allEn",7400,null,"benjamin allen"]
[null,4,"WinSton roy",6800,null,"winston roy"]
[null,5,"ZANder CRuz",6700,null,"zander cruz"]
[null,6,"Win HaRRison",7500,null,"win harrison"]
[null,7,"kevin James",5800,null,"kevin james"]
[null,8,"AuTUMN REsser",5600,null,"autumn resser"]
[null,9,"lily alDridge",7200,null,"lily aldridge"]
[null,10,"Mandy moore",8700,null,"mandy moore"]

{"sheet":"Performing of PROPER Function","index":2,"n_rows":14,"n_cols":6,"rows_kept":14,"cut":false,"hidden":false,"merged":[[1,1,1,5]]}
[]
[null,"Performing of PROPER Function"]
[]
[null,"Sl. No.","Employee Name","Total Sales",null,"Result Changing Case"]
[null,1,"Bingham hawn",8800,null,{"$f":"PROPER(C5)","v":"Bingham Hawn"}]
[null,2,"diesel dean",6400,null,{"$f":"PROPER(C6)","v":"Diesel Dean"}]
[null,3,"benJAmin allEn",7400,null,"Benjamin Allen"]
[null,4,"WinSton roy",6800,null,"Winston Roy"]
[null,5,"ZANder CRuz",6700,null,"Zander Cruz"]
[null,6,"Win HaRRison",7500,null,"Win Harrison"]
[null,7,"kevin James",5800,null,"Kevin James"]
[null,8,"AuTUMN REsser",5600,null,"Autumn Resser"]
[null,9,"lily alDridge",7200,null,"Lily Aldridge"]
[null,10,"Mandy moore",8700,null,"Mandy Moore"]

{"sheet":"Use of Microsoft Word","index":3,"n_rows":14,"n_cols":6,"rows_kept":14,"cut":false,"hidden":false,"merged":[[1,1,1,5]]}
[]
[null,"Use of Microsoft Word"]
[]
[null,"Sl. No.","Employee Name","Total Sales",null,"Result Changing Case"]
[null,1,"Bingham hawn",8800,null,"Bingham Hawn"]
[null,2,"diesel dean",6400,null,"Diesel Dean"]
[null,3,"benJAmin allEn",7400,null,"Benjamin Allen"]
[null,4,"WinSton roy",6800,null,"Winston Roy"]
[null,5,"ZANder CRuz",6700,null,"Zander Cruz"]
[null,6,"Win HaRRison",7500,null,"Win Harrison"]
[null,7,"kevin James",5800,null,"Kevin James"]
[null,8,"AuTUMN REsser",5600,null,"Autumn Resser"]
[null,9,"lily alDridge",7200,null,"Lily Aldridge"]
[null,10,"Mandy moore",8700,null,"Mandy Moore"]

{"sheet":"Use of Flash Fill Feature","index":4,"n_rows":14,"n_cols":5,"rows_kept":14,"cut":false,"hidden":false,"merged":[[1,1,1,4]]}
[]
[null,"Use of Flash Fill Feature"]
[]
[null,"Sl. No.","Employee Name","Result Changing Case","Total Sales"]
[null,1,"Bingham hawn","Bingham Hawn",8800]
[null,2,"diesel dean","Diesel Dean",6400]
[null,3,"benJAmin allEn","Benjamin Allen",7400]
[null,4,"WinSton roy","Winston Roy",6800]
[null,5,"ZANder CRuz","Zander Cruz",6700]
[null,6,"Win HaRRison","Win Harrison",7500]
[null,7,"kevin James","Kevin James",5800]
[null,8,"AuTUMN REsser","Autumn Resser",5600]
[null,9,"lily alDridge","Lily Aldridge",7200]
[null,10,"Mandy moore","Mandy Moore",8700]

{"sheet":"Table2","index":5,"n_rows":11,"n_cols":2,"rows_kept":11,"cut":false,"hidden":false,"merged":[]}
["Employee Name","Capitalize Each Word"]
["Bingham hawn","Bingham Hawn"]
["diesel dean","Diesel Dean"]
["benJAmin allEn","Benjamin Allen"]
["WinSton roy","Winston Roy"]
["ZANder CRuz","Zander Cruz"]
["Win HaRRison","Win Harrison"]
["kevin James","Kevin James"]
["AuTUMN REsser","Autumn Resser"]
["lily alDridge","Lily Aldridge"]
["Mandy moore","Mandy Moore"]

{"sheet":"Utilizing of Power Query","index":6,"n_rows":14,"n_cols":4,"rows_kept":14,"cut":false,"hidden":false,"merged":[[1,1,1,3]]}
[]
[null,"Utilizing of Power Query"]
[]
[null,"Sl. No.","Employee Name","Total Sales"]
[null,1,"Bingham hawn",8800]
[null,2,"diesel dean",6400]
[null,3,"benJAmin allEn",7400]
[null,4,"WinSton roy",6800]
[null,5,"ZANder CRuz",6700]
[null,6,"Win HaRRison",7500]
[null,7,"kevin James",5800]
[null,8,"AuTUMN REsser",5600]
[null,9,"lily alDridge",7200]
[null,10,"Mandy moore",8700]

{"sheet":"Use of VBA Code-1","index":7,"n_rows":14,"n_cols":4,"rows_kept":14,"cut":false,"hidden":false,"merged":[[1,1,1,3]]}
[]
[null,"Use of VBA Code"]
[]
[null,"Sl. No.","Employee Name","Total Sales"]
[null,1,"BINGHAM HAWN",8800]
[null,2,"DIESEL DEAN",6400]
[null,3,"BENJAMIN ALLEN",7400]
[null,4,"WINSTON ROY",6800]
[null,5,"ZANDER CRUZ",6700]
[null,6,"WIN HARRISON",7500]
[null,7,"KEVIN JAMES",5800]
[null,8,"AUTUMN RESSER",5600]
[null,9,"LILY ALDRIDGE",7200]
[null,10,"MANDY MOORE",8700]

{"sheet":"Use of VBA Code-2","index":8,"n_rows":14,"n_cols":4,"rows_kept":14,"cut":false,"hidden":false,"merged":[[1,1,1,3]]}
[]
[null,"Use of VBA Code"]
[]
[null,"Sl. No.","Employee Name","Total Sales"]
[null,1,"bingham hawn",8800]
[null,2,"diesel dean",6400]
[null,3,"benjamin allen",7400]
[null,4,"winston roy",6800]
[null,5,"zander cruz",6700]
[null,6,"win harrison",7500]
[null,7,"kevin james",5800]
[null,8,"autumn resser",5600]
[null,9,"lily aldridge",7200]
[null,10,"mandy moore",8700]

{"sheet":"Use of VBA Code-3","index":9,"n_rows":14,"n_cols":4,"rows_kept":14,"cut":false,"hidden":false,"merged":[[1,1,1,3]]}
[]
[null,"Use of VBA Code"]
[]
[null,"Sl. No.","Employee Name","Total Sales"]
[null,1,"Bingham Hawn",8800]
[null,2,"Diesel Dean",6400]
[null,3,"Benjamin Allen",7400]
[null,4,"Winston Roy",6800]
[null,5,"Zander Cruz",6700]
[null,6,"Win Harrison",7500]
[null,7,"Kevin James",5800]
[null,8,"Autumn Resser",5600]
[null,9,"Lily Aldridge",7200]
[null,10,"Mandy Moore",8700]

{"sheet":"Use of DAX Formula-1","index":10,"n_rows":14,"n_cols":8,"rows_kept":14,"cut":false,"hidden":false,"merged":[[1,1,1,3]]}
[]
[null,"Use of DAX Formula"]
[]
[null,"Sl. No.","Employee Name","Total Sales",null,null,"Row Labels","Upper Case"]
[null,1,"Bingham hawn",8800,null,null,"AuTUMN REsser","AUTUMN RESSER"]
[null,2,"diesel dean",6400,null,null,"benJAmin allEn","BENJAMIN ALLEN"]
[null,3,"benJAmin allEn",7400,null,null,"Bingham hawn","BINGHAM HAWN"]
[null,4,"WinSton roy",6800,null,null,"diesel dean","DIESEL DEAN"]
[null,5,"ZANder CRuz",6700,null,null,"kevin James","KEVIN JAMES"]
[null,6,"Win HaRRison",7500,null,null,"lily alDridge","LILY ALDRIDGE"]
[null,7,"kevin James",5800,null,null,"Mandy moore","MANDY MOORE"]
[null,8,"AuTUMN REsser",5600,null,null,"Win HaRRison","WIN HARRISON"]
[null,9,"lily alDridge",7200,null,null,"WinSton roy","WINSTON ROY"]
[null,10,"Mandy moore",8700,null,null,"ZANder CRuz","ZANDER CRUZ"]

{"sheet":"Use of DAX Formula-2","index":11,"n_rows":14,"n_cols":7,"rows_kept":14,"cut":false,"hidden":false,"merged":[[1,1,1,3]]}
[]
[null,"Use of DAX Formula"]
[]
[null,"Sl. No.","Employee Name","Total Sales",null,"Row Labels","Lower Case"]
[null,1,"Bingham hawn",8800,null,"AuTUMN REsser","autumn resser"]
[null,2,"diesel dean",6400,null,"benJAmin allEn","benjamin allen"]
[null,3,"benJAmin allEn",7400,null,"Bingham hawn","bingham hawn"]
[null,4,"WinSton roy",6800,null,"diesel dean","diesel dean"]
[null,5,"ZANder CRuz",6700,null,"kevin James","kevin james"]
[null,6,"Win HaRRison",7500,null,"lily alDridge","lily aldridge"]
[null,7,"kevin James",5800,null,"Mandy moore","mandy moore"]
[null,8,"AuTUMN REsser",5600,null,"Win HaRRison","win harrison"]
[null,9,"lily alDridge",7200,null,"WinSton roy","winston roy"]
[null,10,"Mandy moore",8700,null,"ZANder CRuz","zander cruz"]